[Event "Condigne Dutch Open 2018"]
[Site "Dieren"]
[Date "2018.07.31"]
[Round "7"]
[White "Van Dael, Siem"]
[Black "Pham, Khoi"]
[Result "1-0"]
[ECO "B80"]
[WhiteElo "2212"]
[BlackElo "2037"]
[Annotator "NA"]
[PlyCount "47"]
[EventDate "2018.07.24"]
[EventType "swiss"]
[EventCountry "NED"]
[SourceTitle "playchess.com"]
[Source "ChessBase"]
[SourceQuality "1"]
[TimeControl "40/5400+30:1800+30"]

1. e4 {[%emt 0:00:00]} c5 {[%emt 0:00:00]} 2. Nf3 {[%emt 0:00:00]} d6 {[%emt 0:00:00]} 3. d4 {[%emt 0:00:00]} cxd4 {[%emt 0:00:00]} 4. Nxd4 {[%emt 0:00:00]} Nf6 {[%emt 0:00:00]} 5. Nc3 {[%emt 0:00:05]} a6 {[%emt 0:00:00]} 6. Be3 {[%emt 0:00:06]} e6 {[%emt 0:00:03]} 7. f3 {[%emt 0:00:05]} b5 {[%emt 0:00:03]} 8. Qd2 {[%emt 0:00:07]} Nbd7 {[%emt 0:00:07]} 9. O-O-O {[%emt 0:00:08]} Bb7 {[%emt 0:00:10]} 10. g4 {[%emt 0:00:04]} Nb6 {[%emt 0:00:06]} 11. a3 {[%emt 0:00:05] B80: Sicilian Scheveningen: 6 g3 and 6 Be3, including English Attack} Rc8 {[%emt 0:00:29]} 12. Kb1 {[%emt 0:00:31]} Nfd7 {[%emt 0:00:26]} 13. Rg1 {[%emt 0:00:07] [#]} d5 $146 {[%emt 0:03:10]} ({Predecessor:} 13... h6 14. f4 Be7 15. h4 Nc4 16. Bxc4 Rxc4 {½-½ (26) Zidu,J (2588)-Blass,U (2602) ICCF email 2012}) 14. exd5 {[%emt 0:01:05]} Nxd5 {[%emt 0:00:08]} 15. Nxd5 {[%emt 0:01:37]} Bxd5 {[%emt 0:00:10]} 16. f4 {[%emt 0:10:47]} Nc5 {[%emt 0:19:53]} 17. Bg2 {[%emt 0:02:25]} Ne4 {[%emt 0:12:22]} (17... Bxg2 $16 18. Qxg2 Qc7) 18. Qd3 {[%emt 0:03:32]} Nc5 {[%emt 0:04:08]} 19. Qe2 {[%emt 0:04:52]} Bc4 $18 {[%emt 0:06:08]} 20. Bc6+ {[%emt 0:01:07]} Nd7 {[%emt 0:02:48]} 21. Qg2 {[%emt 0:02:59]} b4 {[%emt 0:14:05]} 22. Nf5 {[%emt 0:04:49]} Rxc6 {[%emt 0:06:26]} 23. Qxc6 {[%emt 0:02:03]} Bb5 {[%emt 0:00:30]} 24. Nd6+ {[%emt 0:00:23]} 1-0

[Event "Condigne Dutch Open 2018"]
[Site "Dieren"]
[Date "2018.07.31"]
[Round "7"]
[White "Krishnater Kushager"]
[Black "De Jong, Migchiel"]
[Result "0-1"]
[ECO "C01"]
[WhiteElo "2209"]
[BlackElo "2339"]
[Annotator "NA"]
[PlyCount "64"]
[EventDate "2018.07.24"]
[EventType "swiss"]
[EventCountry "NED"]
[SourceTitle "playchess.com"]
[Source "ChessBase"]
[SourceQuality "1"]
[TimeControl "40/5400+30:1800+30"]

{[%evp 20,56,50,32767,32767,40,32767,31,47,32767,32767,32767,32767,32767,32,32767,23,28,32767,17,56,37,43,36,26,-7,-8,-16,-15,-19,-10,-19,-18,-8,-25,-20,32767,-44,-40]} 1. e4 {[%emt 0:00:00]} e6 {[%emt 0:00:00]} 2. d4 {[%emt 0:00:00]} d5 {[%emt 0:00:00]} 3. Bd3 {[%emt 0:00:00]} c5 {[%emt 0:04:33]} 4. exd5 {[%emt 0:00:00]} exd5 {[%emt 0:00:07]} 5. Nf3 {[%emt 0:00:00]} c4 {[%emt 0:00:15] C01: Französische Verteidigung (Abtauschvariante)} (5... Nf6 6. O-O c4 7. Re1+ Be7 8. Be2 O-O 9. b3 cxb3 10. axb3 Nc6 11. c3 Re8 12. Nbd2 Bd6 13. Bd3 Bg4 14. Rxe8+ Qxe8 {0-1 (52) Fontaine,R (2563)-Carlsen,M (2834) chess.com INT 2018}) 6. Be2 {[%emt 0:00:00]} Bd6 {[%emt 0:00:54]} 7. b3 {[%emt 0:00:00]} cxb3 {[%emt 0:00:08]} 8. axb3 {[%emt 0:00:03]} Ne7 {[%emt 0:00:27]} 9. O-O {[%emt 0:01:05]} Nbc6 {[%emt 0:00:25]} 10. Ba3 {[%emt 0:06:59]} Bg4 {[%emt 0:01:17]} 11. h3 {[%emt 0:01:30]} Bh5 {[%emt 0:00:16]} 12. c3 {[%emt 0:00:44]} O-O {[%emt 0:01:14]} 13. Re1 {[%emt 0:01:30]} Rc8 $146 {[%emt 0:00:51]} 14. Nbd2 {[%emt 0:01:57]} Bxa3 {[%emt 0:01:48]} 15. Rxa3 {[%emt 0:00:08]} Qd6 {[%emt 0:00:10]} 16. Ra2 {[%emt 0:02:01]} a6 {[%emt 0:05:26]} 17. Nf1 {[%emt 0:02:58]} Na7 {[%emt 0:06:34]} 18. Qd2 {[%emt 0:03:00]} Rc7 {[%emt 0:03:12]} 19. Ne3 {[%emt 0:04:16]} Nb5 {[%emt 0:05:49]} 20. Bxb5 {[%emt 0:02:38]} axb5 {[%emt 0:00:12]} 21. Ne5 {[%emt 0:02:05]} Rfc8 {[%emt 0:00:46]} 22. c4 {[%emt 0:07:57]} dxc4 {[%emt 0:05:15]} 23. bxc4 {[%emt 0:00:05]} f6 $1 {[%emt 0:00:17]} 24. c5 {[%emt 0:01:02]} Qd8 $1 {[%emt 0:01:01]} 25. N5g4 {[%emt 0:01:39]} Rd7 {[%emt 0:00:26]} 26. Qe2 {[%emt 0:06:53]} Bf7 {[%emt 0:02:13]} 27. Rb2 $11 {[%emt 0:03:34]} b4 {[%emt 0:01:06]} 28. Nc2 {[%emt 0:04:10]} (28. Nc4 $11) 28... Nc6 {[%emt 0:03:36]} 29. Nxb4 {[%emt 0:13:55]} Nxd4 {[%emt 0:00:08]} 30. Qe3 {[%emt 0:00:32]} Rxc5 {[%emt 0:01:55]} 31. Ra1 {[%emt 0:06:46]} h5 {[%emt 0:01:43]} 32. Nh2 {[%emt 0:00:10]} Re5 {[%emt 0:01:16]} 0-1

[Event "Condigne Dutch Open 2018"]
[Site "Dieren"]
[Date "2018.07.31"]
[Round "7"]
[White "Bartakke, Amardeep S"]
[Black "Beukema, Jasper"]
[Result "1-0"]
[ECO "C60"]
[WhiteElo "2066"]
[BlackElo "2299"]
[Annotator "NA"]
[PlyCount "51"]
[EventDate "2018.07.24"]
[EventType "swiss"]
[EventCountry "NED"]
[SourceTitle "playchess.com"]
[Source "ChessBase"]
[SourceQuality "1"]
[TimeControl "40/5400+30:1800+30"]

{[%evp 19,51,146,143,133,32767,455,521,566,578,645,593,617,32767,32767,32767,750,32767,866,768,802,32767,32767,32767,32767,32767,1021,952,918,1438,928,818,809,786,875]} 1. e4 {[%emt 0:00:00]} e5 {[%emt 0:00:00]} 2. Nf3 {[%emt 0:00:00]} Nc6 {[%emt 0:00:00]} 3. Bb5 {[%emt 0:00:00]} Nge7 {[%emt 0:00:00]} 4. Nc3 {[%emt 0:00:07]} a6 {[%emt 0:00:48]} 5. Be2 {[%emt 0:01:23]} g6 {[%emt 0:01:50]} 6. d4 {[%emt 0:03:07]} exd4 {[%emt 0:00:51]} 7. Nd5 {[%emt 0:00:09]} Nxd5 {[%emt 0:03:31]} 8. exd5 {[%emt 0:00:13]} Ne7 {[%emt 0:00:04]} 9. Qxd4 {[%emt 0:02:46]} Rg8 {[%emt 0:00:07]} 10. Bg5 {[%emt 0:13:11]} d6 {[%emt 0:13:45]} 11. O-O-O {[%emt 0:01:06]} Qd7 {[%emt 0:07:28]} 12. Rhe1 {[%emt 0:03:00]} b6 {[%emt 0:02:02]} 13. Bd3 {[%emt 0:07:45]} Bb7 {[%emt 0:02:24] [#]} 14. Rxe7+ $1 {[%emt 0:00:56]} Bxe7 {[%emt 0:00:29]} 15. Re1 {[%emt 0:00:03]} Kd8 {[%emt 0:02:56]} 16. Rxe7 {[%emt 0:01:06]} Qxe7 {[%emt 0:00:10]} 17. c4 {[%emt 0:01:08]} b5 {[%emt 0:01:10]} 18. Bxe7+ {[%emt 0:00:29]} Kxe7 {[%emt 0:00:06]} 19. Qh4+ {[%emt 0:00:10]} Kf8 {[%emt 0:00:23]} 20. Qxh7 {[%emt 0:00:09]} bxc4 {[%emt 0:00:20]} 21. Bxc4 {[%emt 0:00:10]} Re8 {[%emt 0:00:12]} 22. Ng5 {[%emt 0:01:03]} Re7 {[%emt 0:00:22]} 23. Qh4 {[%emt 0:00:58]} Re5 {[%emt 0:01:10]} 24. f4 {[%emt 0:02:55]} Rf5 {[%emt 0:00:39]} 25. g4 {[%emt 0:00:45]} Rxf4 {[%emt 0:00:25] [#]} 26. Ne6+ $18 {[%emt 0:00:03]} 1-0

[Event "Condigne Dutch Open 2018"]
[Site "Dieren"]
[Date "2018.08.01"]
[Round "8"]
[White "Reinderman, Dimitri"]
[Black "Van Foreest, Lucas"]
[Result "1/2-1/2"]
[ECO "A14"]
[WhiteElo "2575"]
[BlackElo "2488"]
[Annotator "RC"]
[PlyCount "103"]
[EventDate "2018.07.24"]
[EventType "swiss"]
[EventCountry "NED"]
[SourceTitle "playchess.com"]
[Source "ChessBase"]
[SourceQuality "1"]
[TimeControl "40/5400+30:1800+30"]

1. Nf3 {[%emt 0:00:00]} Nf6 {[%emt 0:00:00]} 2. c4 {[%emt 0:00:00]} e6 {[%emt 0:00:00]} 3. g3 {[%emt 0:00:00]} d5 {[%emt 0:00:00]} 4. Bg2 {[%emt 0:00:00]} Be7 {[%emt 0:00:00]} 5. O-O {[%emt 0:00:00]} O-O {[%emt 0:00:00]} 6. b3 {[%emt 0:00:10]} b6 {[%emt 0:00:00]} 7. Bb2 {[%emt 0:00:14]} c5 {[%emt 0:00:34]} 8. e3 {[%emt 0:00:29]} Nc6 {[%emt 0:00:40]} 9. Nc3 {[%emt 0:01:12]} Ba6 {[%emt 0:00:42]} 10. Qe2 {[%emt 0:01:00]} Qd7 {[%emt 0:00:59]} 11. Rfd1 {[%emt 0:04:47]} Rac8 {[%emt 0:02:23]} 12. Rac1 {[%emt 0:01:41]} Rfd8 {[%emt 0:00:11]} 13. Nb5 {[%emt 0:04:34]} Qe8 {[%emt 0:14:46]} 14. a4 {[%emt 0:11:50]} Bb7 {[%emt 0:04:32]} 15. Ne5 {[%emt 0:07:36]} Nxe5 {[%emt 0:00:31]} 16. Bxe5 {[%emt 0:00:05]} a6 {[%emt 0:00:22]} 17. Na3 {[%emt 0:01:20]} Rd7 {[%emt 0:06:51]} 18. cxd5 {[%emt 0:05:08]} Nxd5 {[%emt 0:00:31]} 19. Nc4 {[%emt 0:01:34]} Qd8 {[%emt 0:01:18]} 20. Ba1 {[%emt 0:03:08]} a5 {[%emt 0:30:35]} 21. d4 {[%emt 0:06:30]} cxd4 {[%emt 0:00:54]} 22. Bxd4 {[%emt 0:02:14]} Ba6 {[%emt 0:05:39]} 23. Bxd5 {[%emt 0:15:58]} Rxd5 {[%emt 0:02:01]} 24. Qg4 {[%emt 0:00:17]} Rg5 {[%emt 0:00:26]} 25. Qe4 {[%emt 0:00:16]} Rd5 {[%emt 0:10:46]} 26. Nxb6 {[%emt 0:01:21]} Rxc1 {[%emt 0:01:02]} 27. Rxc1 {[%emt 0:00:06]} Rd6 {[%emt 0:00:05]} 28. Qe5 {[%emt 0:09:35]} Bf8 {[%emt 0:05:11]} 29. Qxa5 {[%emt 0:07:16]} e5 {[%emt 0:00:07]} 30. Qxa6 {[%emt 0:03:19]} exd4 {[%emt 0:00:03]} 31. a5 {[%emt 0:00:11]} dxe3 {[%emt 0:00:15]} 32. fxe3 {[%emt 0:01:02]} Qg5 {[%emt 0:03:09]} 33. Qe2 {[%emt 0:01:55]} Qxa5 {[%emt 0:00:10]} 34. Nc4 {[%emt 0:00:13]} Qb5 {[%emt 0:00:14]} 35. Rd1 {[%emt 0:06:08]} Re6 {[%emt 0:00:02]} 36. Qc2 {[%emt 0:00:25]} h5 {[%emt 0:01:25]} 37. Rd4 {[%emt 0:01:46]} Be7 {[%emt 0:00:41]} 38. Qd1 {[%emt 0:03:25]} h4 {[%emt 0:00:58]} 39. Kg2 {[%emt 0:01:45]} Ra6 {[%emt 0:03:44]} 40. gxh4 {[%emt 0:00:49]} Ra2+ {[%emt 0:01:14]} 41. Rd2 {[%emt 0:02:09]} Qb7+ {[%emt 0:00:48]} 42. Kg3 {[%emt 0:05:45]} Ra6 {[%emt 0:03:12]} 43. h5 {[%emt 0:00:36]} Bf6 {[%emt 0:00:20]} 44. Kh3 {[%emt 0:03:07]} Ra1 {[%emt 0:07:12]} 45. Rd7 {[%emt 0:04:16]} Qe4 {[%emt 0:08:18]} 46. Qg4 {[%emt 0:00:24]} Qc2 {[%emt 0:04:50]} 47. h6 {[%emt 0:04:36]} Qh7 {[%emt 0:03:02]} 48. Qf4 {[%emt 0:01:21]} Qg6 {[%emt 0:00:02]} 49. Qg4 {[%emt 0:05:29]} Qxh6+ {[%emt 0:00:07]} 50. Kg2 {[%emt 0:00:09]} Ra2+ {[%emt 0:00:18]} 51. Rd2 {[%emt 0:00:07]} Rxd2+ {[%emt 0:00:04]} 52. Nxd2 {[%emt 0:00:16]} 1/2-1/2

[Event "Condigne Dutch Open 2018"]
[Site "Dieren"]
[Date "2018.08.01"]
[Round "8"]
[White "Beukema, Stefan"]
[Black "Bartakke, Amardeep S."]
[Result "0-1"]
[ECO "B20"]
[WhiteElo "2404"]
[BlackElo "2133"]
[Annotator "NA"]
[PlyCount "94"]
[EventDate "2018.07.24"]
[EventType "swiss"]
[EventCountry "NED"]
[SourceTitle "playchess.com"]
[Source "ChessBase"]
[SourceQuality "1"]
[TimeControl "40/5400+30:1800+30"]

1. f4 {[%emt 0:00:00]} c5 {[%emt 0:00:00]} 2. Nf3 {[%emt 0:00:00]} Nc6 {[%emt 0:00:07]} 3. g3 {[%emt 0:00:09]} g6 {[%emt 0:00:16]} 4. Bg2 {[%emt 0:00:07]} Bg7 {[%emt 0:00:04]} 5. d3 {[%emt 0:00:16]} Nf6 {[%emt 0:08:04]} 6. O-O {[%emt 0:00:40]} O-O {[%emt 0:02:22]} 7. c3 {[%emt 0:02:00]} d6 {[%emt 0:04:43]} 8. e4 {[%emt 0:02:15]} Rb8 {[%emt 0:11:03]} 9. a4 {[%emt 0:00:26]} c4 {[%emt 0:02:04]} 10. b4 {[%emt 0:10:26]} cxd3 {[%emt 0:03:20]} 11. Qxd3 {[%emt 0:00:20]} Ng4 {[%emt 0:15:28]} 12. Ra2 {[%emt 0:07:41]} Qb6+ {[%emt 0:04:17]} 13. Kh1 {[%emt 0:00:49]} d5 {[%emt 0:00:03]} 14. a5 {[%emt 0:01:50]} Qc7 {[%emt 0:01:04]} 15. exd5 {[%emt 0:02:04]} Bf5 {[%emt 0:00:12]} 16. Qc4 {[%emt 0:00:06]} Bxb1 {[%emt 0:05:52]} 17. Rb2 {[%emt 0:04:18]} Bf5 {[%emt 0:03:38]} 18. h3 {[%emt 0:05:17]} Nf6 {[%emt 0:00:38]} 19. Nd4 {[%emt 0:00:35]} Nxd5 {[%emt 0:05:33]} 20. Nxf5 {[%emt 0:03:13]} gxf5 {[%emt 0:04:16]} 21. Bxd5 {[%emt 0:00:18]} Rbc8 {[%emt 0:00:50]} 22. Rc2 {[%emt 0:02:01]} e6 {[%emt 0:00:43]} 23. Bf3 {[%emt 0:03:48]} Nd4 {[%emt 0:01:37]} 24. Qxc7 {[%emt 0:01:53]} Rxc7 {[%emt 0:00:02]} 25. Rd2 {[%emt 0:00:08]} Nxf3 {[%emt 0:03:26]} 26. Rxf3 {[%emt 0:00:06]} Bxc3 {[%emt 0:00:06]} 27. Rc2 {[%emt 0:00:05]} Rfc8 {[%emt 0:00:12]} 28. Ba3 {[%emt 0:00:31]} Rc4 {[%emt 0:00:47]} 29. Rd3 {[%emt 0:00:51]} Bxb4 {[%emt 0:00:55]} 30. Rxc4 {[%emt 0:00:47]} Rxc4 {[%emt 0:00:04]} 31. Bb2 {[%emt 0:00:32]} Bxa5 {[%emt 0:01:38]} 32. Rd7 {[%emt 0:00:47]} Bc3 {[%emt 0:00:52]} 33. Ba3 {[%emt 0:01:30]} b5 {[%emt 0:00:53]} 34. Rd8+ {[%emt 0:00:52]} Kg7 {[%emt 0:00:11]} 35. Bf8+ {[%emt 0:00:18]} Kf6 {[%emt 0:02:43]} 36. Re8 {[%emt 0:00:30]} b4 {[%emt 0:00:53]} 37. Be7+ {[%emt 0:00:06]} Kg7 {[%emt 0:00:06]} 38. Bf8+ {[%emt 0:00:05]} Kg6 {[%emt 0:00:29]} 39. Bd6 {[%emt 0:00:41]} f6 {[%emt 0:01:10]} 40. Re7 {[%emt 0:01:18]} Rc6 {[%emt 0:01:21]} 41. Rd7 {[%emt 0:30:27]} b3 {[%emt 0:30:43]} 42. Bf8 {[%emt 0:00:13]} Rc8 {[%emt 0:02:43]} 43. Rg7+ {[%emt 0:02:17]} Kh6 {[%emt 0:00:07]} 44. Rf7+ {[%emt 0:00:12]} Rxf8 {[%emt 0:00:03]} 45. Rxf8 {[%emt 0:00:06]} b2 {[%emt 0:00:17]} 46. Rb8 {[%emt 0:00:06]} a5 {[%emt 0:00:03]} 47. g4 {[%emt 0:00:05]} Bb4 {[%emt 0:17:32]} 0-1

[Event "Condigne Dutch Open 2018"]
[Site "Dieren"]
[Date "2018.08.01"]
[Round "8"]
[White "Miedema, David"]
[Black "Van Dael, Siem"]
[Result "1/2-1/2"]
[ECO "E93"]
[WhiteElo "2370"]
[BlackElo "2212"]
[Annotator "NA"]
[PlyCount "190"]
[EventDate "2018.07.24"]
[EventType "swiss"]
[EventCountry "NED"]
[SourceTitle "playchess.com"]
[Source "ChessBase"]
[SourceQuality "1"]
[TimeControl "40/5400+30:1800+30"]

1. d4 {[%emt 0:00:00]} Nf6 {[%emt 0:00:00]} 2. c4 {[%emt 0:00:00]} g6 {[%emt 0:00:00]} 3. Nc3 {[%emt 0:00:00]} Bg7 {[%emt 0:00:00]} 4. e4 {[%emt 0:00:04]} d6 {[%emt 0:00:00]} 5. Nf3 {[%emt 0:00:03]} O-O {[%emt 0:00:00]} 6. Be2 {[%emt 0:00:02]} e5 {[%emt 0:00:04]} 7. d5 {[%emt 0:00:04]} Nbd7 {[%emt 0:00:26]} 8. Bg5 {[%emt 0:01:54]} h6 {[%emt 0:00:06]} 9. Be3 {[%emt 0:03:05]} Ng4 {[%emt 0:00:31]} 10. Bc1 {[%emt 0:00:09]} f5 {[%emt 0:00:48]} 11. exf5 {[%emt 0:02:56]} gxf5 {[%emt 0:00:15]} 12. g3 {[%emt 0:00:47]} Nc5 {[%emt 0:13:47]} 13. Nh4 {[%emt 0:02:31]} Qf6 {[%emt 0:08:45]} 14. O-O {[%emt 0:04:11]} e4 {[%emt 0:02:10]} 15. Ng2 {[%emt 0:04:39]} Ne5 {[%emt 0:07:33]} 16. Nf4 {[%emt 0:00:17]} Bh8 {[%emt 0:00:32]} 17. Be3 {[%emt 0:12:20]} Bd7 {[%emt 0:02:45]} 18. Nb5 {[%emt 0:04:28]} Bxb5 {[%emt 0:05:17]} 19. cxb5 {[%emt 0:00:05]} Ng6 {[%emt 0:00:37]} 20. Rc1 {[%emt 0:15:20]} Nxf4 {[%emt 0:08:19]} 21. Bxf4 {[%emt 0:01:14]} Qxb2 {[%emt 0:02:02]} 22. Bxh6 {[%emt 0:00:10]} Bg7 {[%emt 0:05:03]} 23. Be3 {[%emt 0:20:56]} b6 {[%emt 0:02:02]} 24. Rc2 {[%emt 0:00:24]} Qf6 {[%emt 0:02:01]} 25. f4 {[%emt 0:00:18]} Kf7 {[%emt 0:19:38]} 26. g4 {[%emt 0:00:16]} Rh8 {[%emt 0:00:53]} 27. g5 {[%emt 0:00:15]} Qg6 {[%emt 0:00:49]} 28. Rf2 {[%emt 0:06:14]} Rh3 {[%emt 0:05:29]} 29. Qd2 {[%emt 0:00:03]} Re8 {[%emt 0:01:53]} 30. Bf1 {[%emt 0:00:41]} Rh4 {[%emt 0:02:15]} 31. Rg2 {[%emt 0:02:58]} Qh5 {[%emt 0:03:28]} 32. Rg3 {[%emt 0:08:01]} Kg6 {[%emt 0:04:07]} 33. h3 {[%emt 0:00:22]} Qh8 {[%emt 0:03:57]} 34. Kh2 {[%emt 0:00:36]} Re7 {[%emt 0:00:53]} 35. Bf2 {[%emt 0:01:46]} e3 {[%emt 0:00:30]} 36. Rxe3 {[%emt 0:00:39]} Ne4 {[%emt 0:00:01]} 37. Rxe4 {[%emt 0:09:11]} Rxe4 {[%emt 0:00:08]} 38. Bg2 {[%emt 0:00:32]} Rhxf4 {[%emt 0:01:12]} 39. Bg3 {[%emt 0:00:31]} Qd8 {[%emt 0:00:41]} 40. Bxe4 {[%emt 0:01:21]} Rxe4 {[%emt 0:00:09]} 41. Qc1 {[%emt 0:01:33]} f4 {[%emt 0:05:49]} 42. Bf2 {[%emt 0:01:46]} Qxg5 {[%emt 0:03:21]} 43. Qd1 {[%emt 0:01:31]} Be5 {[%emt 0:13:37]} 44. Qf3 {[%emt 0:00:33]} Ra4 {[%emt 0:00:20]} 45. Be1 {[%emt 0:05:47]} Qf5 {[%emt 0:01:40]} 46. Rg2+ {[%emt 0:00:13]} Kf7 {[%emt 0:00:05]} 47. Kg1 {[%emt 0:05:26]} Bd4+ {[%emt 0:04:21]} 48. Kh1 {[%emt 0:04:45]} Bc5 {[%emt 0:00:41]} 49. Bc3 {[%emt 0:01:01]} Rxa2 {[%emt 0:00:21]} 50. Bb2 {[%emt 0:03:41]} Qb1+ {[%emt 0:04:20]} 51. Kh2 {[%emt 0:00:02]} Bg1+ {[%emt 0:00:54]} 52. Rxg1 {[%emt 0:00:02]} Rxb2+ {[%emt 0:00:24]} 53. Kh1 {[%emt 0:01:04]} Qf5 {[%emt 0:00:26]} 54. Rc1 {[%emt 0:01:14]} Rb1 {[%emt 0:00:30]} 55. Rxb1 {[%emt 0:00:20]} Qxb1+ {[%emt 0:00:06]} 56. Kg2 {[%emt 0:01:26]} Qc2+ {[%emt 0:00:47]} 57. Qf2 {[%emt 0:01:12]} Qe4+ {[%emt 0:01:05]} 58. Qf3 {[%emt 0:00:04]} Qg6+ {[%emt 0:00:13]} 59. Kf2 {[%emt 0:00:56]} Qc2+ {[%emt 0:00:17]} 60. Ke1 {[%emt 0:00:25]} Qc1+ {[%emt 0:00:39]} 61. Kf2 {[%emt 0:00:21]} Qd2+ {[%emt 0:00:30]} 62. Kf1 {[%emt 0:00:13]} Kf6 {[%emt 0:00:25]} 63. Qe4 {[%emt 0:00:53]} Qc1+ {[%emt 0:00:56]} 64. Ke2 {[%emt 0:00:30]} Qb2+ {[%emt 0:00:29]} 65. Kf3 {[%emt 0:00:29]} Qc3+ {[%emt 0:00:28]} 66. Kxf4 {[%emt 0:00:05]} Qxh3 {[%emt 0:00:04]} 67. Qd4+ {[%emt 0:01:10]} Kf7 {[%emt 0:00:03]} 68. Qf2 {[%emt 0:01:57]} Qh5 {[%emt 0:00:32]} 69. Qa2 {[%emt 0:02:11]} Qe5+ {[%emt 0:00:29]} 70. Kg4 {[%emt 0:00:26]} Qe4+ {[%emt 0:00:49]} 71. Kg5 {[%emt 0:00:48]} Qe3+ {[%emt 0:00:57]} 72. Kg4 {[%emt 0:00:03]} Qd4+ {[%emt 0:00:38]} 73. Kg5 {[%emt 0:00:06]} Qc5 {[%emt 0:00:34]} 74. Qb3 {[%emt 0:00:12]} Qc1+ {[%emt 0:00:27]} 75. Kf5 {[%emt 0:01:32]} Qa1 {[%emt 0:00:34]} 76. Qc4 {[%emt 0:00:28]} Qe5+ {[%emt 0:00:27]} 77. Kg4 {[%emt 0:00:04]} Kf6 {[%emt 0:00:28]} 78. Qf1+ {[%emt 0:01:13]} Kg6 {[%emt 0:00:28]} 79. Qd3+ {[%emt 0:00:11]} Kf6 {[%emt 0:00:07]} 80. Qf1+ {[%emt 0:00:04]} Ke7 {[%emt 0:00:11]} 81. Qc4 {[%emt 0:00:10]} Kd8 {[%emt 0:01:00]} 82. Kf3 {[%emt 0:03:29]} Kc8 {[%emt 0:00:26]} 83. Kg4 {[%emt 0:01:01]} Kb8 {[%emt 0:00:50]} 84. Qd3 {[%emt 0:00:08]} Kb7 {[%emt 0:00:20]} 85. Qc4 {[%emt 0:00:03]} Qe3 {[%emt 0:00:26]} 86. Kf5 {[%emt 0:00:44]} Kb8 {[%emt 0:00:40]} 87. Kf6 {[%emt 0:00:23]} Qf2+ {[%emt 0:00:36]} 88. Ke7 {[%emt 0:00:37]} Kc8 {[%emt 0:00:32]} 89. Qe4 {[%emt 0:01:00]} Kb8 {[%emt 0:00:29]} 90. Qe6 {[%emt 0:01:03]} Qh4+ {[%emt 0:00:25]} 91. Kd7 {[%emt 0:00:22]} Qh7+ {[%emt 0:00:13]} 92. Kc6 {[%emt 0:00:13]} Qc2+ {[%emt 0:00:34]} 93. Kd7 {[%emt 0:00:03]} Qh7+ {[%emt 0:00:42]} 94. Kc6 {[%emt 0:00:03]} Qh8 {[%emt 0:00:33]} 95. Qc8+ {[%emt 0:00:10]} Kxc8 {[%emt 0:00:05]} 1/2-1/2